bitfinex-derivatives/quotes_ETHF0:USTF0_20230403
["timestamp","ask_amount","ask_price","bid_price","bid_amount"]
[1680486606348,1.5740676,1768.9,1768.7,2.261]
[1680486606654,0.5740676,1768.9,1768.7,2.261]
[1680486606849,3.2078,1768.8,1768.7,2.261]
[1680486609557,0.5740676,1768.9,1768.7,2.261]
[1680486609952,3.2078,1768.8,1768.7,2.261]
[1680486610256,3.2078,1768.8,1768.5,2.259]
[1680486611046,3.2078,1768.8,1768.4,0.55144286]
[1680486611047,3.7818676,1768.8,1768.4,0.55144286]
[1680486611251,1.0,1768.7,1768.2,3.2078]
[1680486611458,1.0,1768.7,1768.5,2.259]
[1680486611758,3.2078,1768.6,1768.5,2.259]
[1680486612262,3.2078,1768.6,1768.4,2.248]
[1680486612860,3.2078,1768.6,1768.5,0.50775894]
[1680486613054,3.2078,1768.6,1768.2,2.83649306]
[1680486613055,4.2078,1768.6,1768.2,2.83649306]
[1680486613451,1.0,1768.5,1768.2,2.83649306]
[1680486614950,3.2078,1768.4,1768.2,2.83649306]
[1680486615155,3.2078,1768.4,1768.0,2.259]
[1680486615351,3.2078,1768.2,1768.0,2.259]
[1680486616659,1.0,1768.1,1768.0,2.259]
[1680486616856,1.0,1768.1,1767.8,2.256]
[1680486617653,3.2078,1768.0,1767.6,5.4668]
[1680486618460,3.2078,1768.0,1767.6,7.16113896]
[1680486619057,3.2078,1767.8,1767.6,1.69433896]
[1680486619363,3.2078,1767.8,1767.4,5.4688]
[1680486619760,5.4688,1767.9,1767.4,5.4688]
[1680486620361,1.0,1767.8,1767.4,5.4688]
[1680486620565,5.4688,1767.9,1767.4,5.4688]
[1680486621569,3.2078,1767.7,1767.4,5.4688]
[1680486621769,3.2078,1767.7,1767.4,2.261]
[1680486621966,3.2078,1767.7,1767.4,2.83475756]
[1680486622162,3.2078,1767.7,1767.4,0.57375756]
[1680486622369,3.2078,1767.7,1767.5,2.261]
[1680486622564,6.0428676,1768.2,1767.6,2.261]
[1680486623063,3.2078,1767.8,1767.6,2.261]
[1680486624067,3.2078,1767.9,1767.6,2.261]
[1680486624273,7.0428676,1768.2,1767.6,2.261]
[1680486624466,3.2078,1768.0,1767.6,2.261]
[1680486626870,3.2078,1767.8,1767.6,2.261]
[1680486627074,2.261,1768.2,1767.6,2.261]
[1680486627075,3.2078,1768.1,1767.6,2.261]
[1680486627262,3.2078,1767.9,1767.4,2.25]
[1680486627464,1.0,1767.8,1767.4,2.25]
[1680486627667,3.2078,1767.9,1767.4,2.25]
[1680486627968,3.2078,1767.7,1767.5,0.16916414]
[1680486628671,5.4688,1768.0,1767.5,0.16916414]
[1680486628865,1.0,1767.9,1767.5,0.16916414]
[1680486629060,5.4688,1768.0,1767.5,3.37696414]
[1680486630872,3.2078,1768.0,1767.6,2.261]
[1680486631075,2.261,1768.1,1767.6,2.261]
[1680486631474,2.261,1768.1,1767.7,3.2078]
[1680486632578,3.2078,1768.0,1767.7,3.2078]
[1680486632779,3.2078,1768.0,1767.6,2.261]
[1680486635676,5.4688,1768.0,1767.5,3.37696414]
[1680486635868,3.2078,1767.8,1767.5,0.16916414]
[1680486636072,5.4688,1768.0,1767.5,0.16916414]
[1680486636679,2.261,1768.1,1767.6,5.4688]
[1680486636979,2.261,1768.1,1767.7,1.0]
[1680486637180,1.126,1768.1,1767.7,1.125]
[1680486637980,3.2078,1768.2,1767.8,1.131]
[1680486638182,1.131,1768.3,1767.8,1.131]
[1680486638684,3.2078,1768.2,1767.8,1.131]
[1680486640684,1.0,1767.9,1767.6,1.131]
[1680486640981,4.3338,1768.0,1767.6,1.131]
[1680486641189,4.3338,1768.2,1767.8,1.131]
[1680486641383,1.126,1768.2,1767.8,1.131]
[1680486641889,1.131,1768.0,1767.5,1.29416414]
[1680486642089,4.3388,1768.0,1767.5,1.29416414]
[1680486642586,4.3388,1768.0,1767.5,4.50196414]
[1680486643585,1.131,1768.0,1767.5,4.50196414]
[1680486644088,4.3388,1768.0,1767.5,1.29416414]
[1680486644382,4.3388,1768.0,1767.5,4.50196414]
[1680486644882,4.3388,1768.0,1767.5,1.29416414]
[1680486645386,3.2078,1768.0,1767.7,1.131]
[1680486647692,3.2078,1768.0,1767.9,1.13]
[1680486649889,3.2078,1768.0,1767.7,1.13]
[1680486652094,4.3388,1768.0,1767.6,1.31733309]
[1680486652498,3.2078,1767.8,1767.6,1.31733309]
[1680486653191,4.9128676,1768.0,1767.6,1.31733309]
[1680486653389,3.2078,1767.8,1767.6,1.31733309]
[1680486653594,4.9128676,1768.0,1767.6,1.31733309]
[1680486654698,3.2078,1767.8,1767.6,1.31733309]
[1680486655900,3.2078,1767.7,1767.6,1.31733309]
[1680486656101,3.7818676,1767.9,1767.6,1.31733309]
[1680486656604,3.2078,1767.9,1767.6,1.31733309]
[1680486656904,4.6404127,1767.9,1767.6,1.31733309]
[1680486657103,3.7818676,1767.9,1767.6,1.31733309]
[1680486657399,0.5740676,1767.8,1767.6,1.31733309]
[1680486657705,0.5740676,1767.8,1767.2,5.79030604]
[1680486657706,12.9904127,1767.7,1767.1,1.16317426]
[1680486657997,12.9904127,1767.7,1766.8,0.59273162]
[1680486657998,4.9143454,1767.2,1766.8,0.59273162]
[1680486658204,4.3388,1767.1,1766.8,0.59273162]
[1680486658402,3.2078,1766.9,1766.8,0.59273162]
[1680486659002,3.2078,1766.9,1766.6,0.59273162]
[1680486659198,4.3368,1766.9,1766.6,0.59273162]
[1680486659598,3.2078,1766.7,1766.6,0.59273162]
[1680486660408,1.129,1766.9,1766.6,0.59273162]
[1680486660701,4.3368,1766.9,1766.6,0.59273162]
[1680486660901,3.2078,1766.7,1766.6,0.59273162]
[1680486661104,4.3388,1767.1,1766.6,2.01912975]
[1680486661300,4.3388,1767.1,1766.7,1.59204935]
[1680486661502,3.2078,1766.9,1766.7,1.59204935]
[1680486661696,1.131,1767.1,1766.7,1.59204935]
[1680486661697,4.3388,1767.1,1766.7,1.59204935]
[1680486661900,4.3388,1767.1,1766.7,0.59204935]
[1680486662098,3.2078,1767.1,1766.7,2.83504935]
[1680486662302,3.2078,1766.9,1766.7,2.83504935]
[1680486662507,3.2078,1766.9,1766.7,3.7241791]
[1680486662711,3.2078,1766.9,1766.7,0.59204935]
[1680486663005,3.2078,1766.9,1766.6,0.88912975]
[1680486663006,3.2078,1766.9,1766.6,1.4811791]
[1680486663202,5.4708,1766.9,1766.6,0.59204935]
[1680486663403,21.7,1766.8,1766.5,0.59204935]
[1680486663603,3.2078,1766.7,1766.5,0.59204935]
[1680486663900,5.4708,1766.7,1766.4,1.4811791]
[1680486664106,3.2078,1766.5,1766.4,1.4811791]
[1680486664408,3.2078,1766.5,1766.4,0.59214442]
[1680486664607,5.4708,1766.7,1766.4,1.48127417]
[1680486664801,5.4648,1766.5,1766.3,0.59214442]
[1680486665399,0.23761553,1766.4,1766.2,0.59214442]
[1680486665605,1.23761553,1766.4,1766.2,0.59214442]
[1680486665809,0.23761553,1766.4,1766.1,1.16418866]
[1680486666509,11.33761553,1766.4,1766.1,1.16418866]
[1680486666710,11.33761553,1766.4,1766.1,0.59214442]
[1680486667112,11.33761553,1766.4,1766.0,2.85514442]
[1680486667310,11.33761553,1766.4,1766.0,2.263]
[1680486667807,3.2078,1766.3,1765.9,0.59214442]
[1680486669707,7.5078,1766.3,1765.9,0.59214442]
[1680486669912,7.5078,1766.3,1765.8,2.84214442]
[1680486670113,3.2078,1766.1,1765.8,2.25]
[1680486670308,7.5078,1766.3,1765.8,2.25]
[1680486670519,0.23761553,1766.4,1766.2,2.262]
[1680486670714,0.23761553,1766.4,1765.9,9.2078]
[1680486670915,0.23761553,1766.4,1766.3,2.25]
[1680486671120,3.2078,1766.6,1766.3,2.25]
[1680486671421,3.2078,1766.6,1766.5,2.262]
[1680486672119,3.2078,1766.6,1766.4,2.263]
[1680486672315,3.2078,1766.6,1766.5,1.0]
[1680486672511,3.2078,1766.6,1766.4,2.263]
[1680486672913,0.19971628,1766.5,1766.4,2.263]
[1680486674013,0.19971628,1766.5,1766.3,2.262]
[1680486674617,3.2078,1766.4,1766.3,2.262]
[1680486674814,3.2078,1766.4,1765.9,1.0]
[1680486674815,3.2078,1766.4,1766.1,2.243]
[1680486676914,3.2078,1766.2,1766.1,2.243]
[1680486678114,3.2078,1766.4,1766.1,2.243]
[1680486678720,0.19971628,1766.5,1766.3,2.263]
[1680486679012,3.2078,1766.7,1766.4,2.256]
[1680486679418,3.2078,1766.9,1766.6,2.263]
[1680486679624,3.2078,1766.9,1766.8,2.262]
[1680486680312,3.2078,1767.1,1766.9,1.0]
[1680486681420,3.2078,1767.1,1766.8,3.262]
[1680486681619,3.2078,1767.1,1766.9,1.0]
[1680486682327,3.2078,1767.1,1766.8,3.262]
[1680486682819,5.4658,1767.1,1766.6,2.255]
[1680486683026,3.2078,1766.9,1766.6,2.255]
[1680486683225,5.4658,1767.1,1766.6,2.255]
[1680486683426,3.2078,1767.1,1766.8,2.243]
[1680486683624,3.2078,1767.1,1767.0,2.263]
[1680486683928,3.2078,1767.1,1767.0,2.32895304]
[1680486684521,3.2078,1767.3,1767.0,2.32895304]
[1680486684724,3.2078,1767.3,1767.2,2.262]
[1680486685919,0.15594052,1767.4,1767.2,2.243]
[1680486686131,0.15594052,1767.4,1767.3,2.262]
[1680486686329,0.15594052,1767.4,1767.3,3.262]
[1680486686528,0.70178691,1767.6,1767.3,3.262]
[1680486686727,3.2078,1768.0,1767.5,7.846]
[1680486686919,3.2078,1768.0,1767.9,2.262]
[1680486687228,3.2078,1768.0,1767.9,2.263]
[1680486687926,3.2078,1768.0,1767.9,2.55277151]
[1680486688931,3.2078,1768.2,1767.9,2.55277151]
[1680486689130,3.2078,1768.2,1768.1,2.256]
[1680486690326,3.2078,1768.2,1768.1,2.243]
[1680486690832,3.2078,1768.4,1768.1,2.243]
[1680486692928,0.15588578,1768.0,1767.9,0.28977151]
[1680486693231,0.15588578,1768.0,1767.8,2.25]
[1680486693232,3.36368578,1768.0,1767.8,2.25]
[1680486694025,0.15588578,1768.0,1767.8,2.25]
[1680486694734,0.15588578,1768.0,1767.9,2.262]
[1680486694933,0.15588578,1768.0,1767.9,5.4698]
[1680486695132,6.40112362,1768.7,1768.0,1.0]
[1680486695437,6.40112362,1768.7,1768.2,2.263]
[1680486695832,3.2078,1768.3,1767.9,2.25]
[1680486696135,3.2078,1768.6,1768.2,2.243]
[1680486697030,3.2078,1768.6,1768.3,1.0]
[1680486697627,3.2078,1768.6,1768.2,5.4508]
[1680486698035,0.93532362,1768.7,1768.5,2.263]
[1680486698335,3.2078,1769.2,1768.6,5.4578]
[1680486698541,3.2078,1769.0,1768.7,2.244]
[1680486698931,3.2078,1769.0,1768.6,2.255]
[1680486699137,3.2078,1768.8,1768.6,2.255]
[1680486701536,3.2078,1768.8,1768.3,2.25]
[1680486701840,1.0,1768.7,1768.3,2.25]
[1680486702028,1.0,1768.7,1768.2,6.03300803]
[1680486702233,3.2078,1768.8,1768.6,2.256]
[1680486702428,4.2078,1769.2,1768.6,2.256]
[1680486702639,6.4668,1769.2,1768.6,5.4638]
[1680486702947,5.0,1769.1,1768.7,0.31186509]
[1680486703236,1.0,1769.0,1768.6,5.4638]
[1680486703536,7.246,1769.3,1768.7,2.55483633]
[1680486703745,3.2078,1769.4,1768.9,2.263]
[1680486703937,3.2078,1769.4,1769.1,2.25]
[1680486704441,5.4648,1769.4,1768.9,2.262]
[1680486705141,1.0,1769.3,1768.9,2.262]
[1680486705439,1.0,1769.3,1768.9,5.4698]
[1680486705739,1.0,1769.3,1768.9,2.262]
[1680486705936,3.2078,1769.2,1768.9,2.262]
[1680486706135,3.2078,1769.2,1768.7,0.31183633]
[1680486706136,3.2078,1769.2,1768.7,5.76963633]
[1680486707042,2.246,1769.3,1768.7,5.76963633]
[1680486707337,3.2078,1769.4,1768.9,3.2078]
[1680486707338,5.4648,1769.4,1768.9,3.2078]
[1680486707741,5.4648,1769.4,1768.8,2.262]
[1680486708141,5.4648,1769.4,1768.9,3.2078]
[1680486708746,3.2078,1769.4,1769.0,2.243]
[1680486713646,3.2078,1769.4,1769.1,2.244]
[1680486714847,3.2078,1769.4,1768.9,5.4518]
[1680486715151,2.263,1769.3,1768.9,3.2078]
[1680486715449,2.263,1769.1,1768.7,0.31183633]
[1680486715643,3.2078,1769.0,1768.7,0.31183633]
[1680486715849,3.2078,1769.0,1768.6,2.255]
[1680486717244,3.2078,1769.0,1768.6,5.4628]
[1680486717850,3.2078,1769.0,1768.7,0.38900745]
[1680486718050,3.2078,1769.0,1768.6,5.4628]
[1680486718245,3.2078,1769.0,1768.7,1.0]
[1680486718649,3.2078,1769.0,1768.8,2.243]
[1680486719549,1.0,1769.5,1768.9,2.244]
[1680486719550,3.2078,1769.4,1768.9,2.244]
[1680486719949,3.2078,1769.2,1768.9,2.244]
[1680486720446,5.4708,1769.5,1768.9,2.244]
[1680486720642,3.2078,1769.3,1768.9,2.244]
[1680486720847,5.4708,1769.5,1769.0,1.0]
[1680486721047,3.2078,1769.5,1769.4,2.263]
[1680486722153,3.2078,1769.5,1769.3,2.255]
[1680486722652,3.2078,1769.7,1769.3,2.255]
[1680486722857,3.2078,1769.7,1769.5,2.263]
[1680486723158,3.2078,1769.7,1769.5,2.10723961]
[1680486724058,3.2078,1769.9,1769.5,2.10723961]
[1680486725053,3.2078,1769.9,1769.5,3.10723961]
[1680486725255,3.2078,1769.9,1769.5,2.10723961]
[1680486725951,3.2078,1769.7,1769.5,2.10723961]
[1680486726149,3.2078,1769.7,1769.3,2.263]
[1680486726748,1.0,1769.6,1769.3,2.263]
[1680486726947,3.2078,1769.5,1769.3,2.263]
[1680486727943,3.2078,1769.5,1769.1,2.263]
[1680486728345,3.2078,1769.3,1769.1,2.263]
[1680486729759,1.0,1769.2,1768.9,2.256]
[1680486729957,3.2078,1769.1,1768.6,3.2078]
[1680486730257,3.2078,1769.1,1768.3,5.1329]
[1680486730258,5.4708,1768.7,1768.3,5.1329]
[1680486730564,3.2078,1768.5,1768.2,2.256]
[1680486730760,3.2078,1768.5,1768.4,2.263]
[1680486730956,3.2078,1768.7,1768.4,2.263]
[1680486731458,3.2078,1768.5,1768.4,2.263]
[1680486732060,3.2078,1768.5,1768.3,2.244]
[1680486732261,3.2078,1768.7,1768.4,2.243]
[1680486732649,3.2078,1768.7,1768.5,0.26721144]
[1680486733765,1.0,1768.6,1768.3,2.244]
[1680486734060,3.2078,1768.5,1768.3,2.244]
[1680486735259,3.2078,1768.5,1768.2,2.262]
[1680486737760,1.55955009,1768.6,1768.2,2.262]
[1680486737761,3.2078,1768.3,1768.2,2.262]
[1680486738061,3.2078,1768.3,1768.0,2.263]
[1680486738761,1.0,1768.2,1768.0,2.263]
[1680486739161,3.2078,1768.3,1768.0,2.263]
[1680486740058,1.0,1768.2,1768.0,2.263]
[1680486740268,3.2078,1768.1,1768.0,2.263]
[1680486742071,3.2078,1768.1,1767.9,2.263]
[1680486742560,11.7,1768.2,1767.9,2.263]
[1680486742767,3.2078,1768.1,1767.9,2.263]
[1680486743167,3.2078,1768.1,1767.8,2.263]
[1680486747266,3.2078,1768.1,1767.8,1.131]
[1680486747671,3.2078,1768.1,1767.9,0.10902898]
[1680486749768,1.131,1768.0,1767.9,0.10902898]
[1680486750169,2.131,1768.0,1767.6,1.131]
[1680486750375,3.2078,1767.9,1767.6,1.131]
[1680486751163,11.7,1768.2,1767.8,1.123]
[1680486751362,5.63058803,1768.6,1767.7,3.2078]
[1680486751363,3.2078,1768.4,1768.1,1.121]
[1680486751971,4.5,1768.3,1768.1,1.121]
[1680486755376,4.5,1768.3,1768.2,1.123]
[1680486755566,4.5,1768.3,1768.2,2.123]
[1680486756377,4.5,1768.3,1768.2,1.123]
[1680486756577,3.2078,1768.6,1768.2,1.123]
[1680486756771,3.2078,1768.6,1768.1,4.2078]
[1680486756772,3.2078,1768.6,1768.4,1.131]
[1680486756973,4.5,1768.5,1768.4,1.131]
[1680486757269,3.2078,1768.6,1768.4,1.131]
[1680486758074,4.3308,1768.6,1768.2,1.131]
[1680486758380,3.2078,1768.4,1768.2,1.131]
[1680486759879,3.2078,1768.4,1768.0,1.70183258]
[1680486760079,3.2078,1768.2,1768.0,1.70183258]
[1680486760583,1.0,1768.1,1768.0,1.70183258]
[1680486760773,3.2078,1768.2,1768.0,1.70183258]
[1680486760969,3.2078,1768.3,1768.1,1.131]
[1680486761275,5.3388,1768.6,1768.1,1.131]
[1680486761477,3.2078,1768.4,1768.1,1.131]
[1680486762679,1.0,1768.3,1768.2,0.10355877]
[1680486762983,3.2078,1768.4,1768.1,1.131]
[1680486763683,1.0,1768.3,1768.1,1.131]
[1680486764085,3.2078,1768.4,1768.1,1.131]
[1680486764581,1.0,1768.3,1768.1,1.131]
[1680486764977,3.2078,1768.4,1768.1,1.131]
[1680486765181,1.0,1768.3,1768.1,1.131]
[1680486765785,3.2078,1768.4,1768.1,1.131]
[1680486766190,1.0,1768.3,1768.1,1.131]
[1680486766373,3.2078,1768.2,1767.6,3.2078]
[1680486766574,4.3308,1768.2,1767.7,1.123]
[1680486767183,1.0,1768.1,1767.7,1.123]
[1680486767384,3.2078,1768.0,1767.7,1.123]
[1680486769783,1.0,1767.9,1767.7,1.123]
[1680486769983,3.2078,1767.8,1767.5,1.69284262]
[1680486770181,3.27700167,1767.8,1767.5,1.123]
[1680486770378,3.2078,1767.8,1767.5,1.123]
[1680486770684,3.2078,1767.8,1767.6,1.131]
[1680486772887,3.2078,1767.8,1767.7,1.123]
[1680486773289,3.27525149,1767.8,1767.7,1.123]
[1680486773587,3.2078,1767.8,1767.7,1.16395669]
[1680486774283,1.43878334,1768.2,1767.7,2.05308644]
[1680486774590,0.5755454,1768.1,1768.0,1.123]
[1680486774801,1.5755454,1768.1,1767.7,1.75620621]
[1680486774985,1.5755454,1768.1,1767.7,2.64533596]
[1680486775181,1.5755454,1768.1,1767.7,2.60437927]
[1680486775979,0.5755454,1768.1,1767.7,2.60437927]
[1680486776283,0.5755454,1768.1,1768.0,1.121]
[1680486777090,1.43878334,1768.4,1768.0,2.84424952]
[1680486777285,0.57681455,1768.4,1768.3,1.127]
[1680486777783,0.57681455,1768.4,1768.3,1.30979422]
[1680486778486,1.44005249,1768.5,1768.3,1.30979422]
[1680486778688,0.57681455,1768.5,1768.3,1.30979422]
[1680486778991,1.44005249,1768.5,1768.3,1.30979422]
[1680486779187,0.57681455,1768.5,1768.3,1.30979422]
[1680486779795,0.57681455,1768.4,1768.3,0.18279422]
[1680486779984,1.1510908,1768.4,1768.3,0.18279422]
[1680486780184,0.02975464,1768.2,1767.8,1.48137927]
[1680486780488,3.81438291,1768.2,1768.1,1.121]
[1680486780686,4.81438291,1768.2,1768.1,1.121]
[1680486780886,5.67962531,1768.2,1768.1,1.121]
[1680486782083,5.67962531,1768.2,1767.9,1.123]
[1680486782286,1.0,1768.1,1767.9,1.123]
[1680486783388,3.2078,1768.0,1767.8,0.59224952]
[1680486783693,0.04360079,1767.9,1767.6,1.48137927]
[1680486783895,3.2078,1767.8,1767.6,1.71324952]
[1680486784094,3.2078,1767.8,1767.6,1.121]
[1680486784297,1.0,1767.7,1767.6,1.121]
[1680486785491,3.2078,1767.8,1767.6,1.121]
[1680486785692,1.0,1767.7,1767.6,1.121]
[1680486787098,3.2078,1767.8,1767.6,1.121]
[1680486787296,3.2078,1767.8,1767.5,0.59224952]
[1680486787491,3.2078,1767.6,1767.4,0.59224952]
[1680486787995,3.2078,1767.6,1767.4,1.127]
[1680486787996,1.0,1767.5,1767.4,1.127]
[1680486788295,1.0,1767.5,1767.4,1.71924952]
[1680486789690,1.0,1767.5,1767.4,1.127]
[1680486792194,1.0,1767.5,1767.3,1.121]
[1680486792806,0.11818812,1767.4,1767.3,1.121]
[1680486793304,1.0,1767.7,1767.3,1.121]
[1680486793505,3.2078,1767.6,1767.3,1.121]
[1680486793810,1.0,1767.5,1767.3,1.121]
[1680486794803,1.0,1767.5,1767.1,3.80004952]
[1680486795108,1.0,1767.5,1766.8,6.02617426]
[1680486795109,4.3308,1767.3,1766.8,0.88912975]
[1680486795309,3.2078,1767.0,1766.7,0.88912975]
[1680486795510,3.2078,1767.0,1766.8,1.131]
[1680486796317,3.2078,1767.2,1766.8,1.131]
[1680486796511,3.2078,1767.0,1766.8,1.131]
[1680486798214,3.2078,1767.0,1766.5,5.78110196]
[1680486798813,3.2078,1766.8,1766.5,0.88912975]
[1680486799008,3.2078,1766.8,1766.4,0.88912975]
[1680486799207,3.2078,1766.8,1766.5,1.131]
[1680486800017,1.0,1766.7,1766.5,1.131]
[1680486800421,3.2078,1767.1,1766.6,1.127]
[1680486800614,3.2078,1767.1,1767.0,1.131]
[1680486801016,3.2078,1767.4,1767.0,1.131]
[1680486801319,2.13,1767.7,1767.2,1.121]
[1680486801519,3.2078,1767.5,1767.2,1.121]
[1680486802618,4.3388,1767.5,1767.0,1.124]
[1680486802823,1.121,1767.7,1767.2,1.127]
[1680486802824,3.2078,1767.3,1767.2,1.127]
[1680486803519,3.2078,1767.5,1767.2,1.127]
[1680486804123,3.2078,1767.5,1767.4,1.131]
[1680486804322,3.2078,1767.5,1767.2,1.131]
[1680486804714,3.2078,1767.3,1767.2,1.131]
[1680486805127,3.2078,1767.3,1767.1,1.127]
[1680486805617,1.0,1767.2,1767.1,1.127]
[1680486806024,3.2078,1767.3,1767.1,1.127]
[1680486807719,0.13800097,1767.2,1767.1,1.127]
[1680486808328,0.13800097,1767.2,1767.1,1.131]
[1680486808529,3.2078,1767.5,1767.1,1.131]
[1680486808826,3.2078,1767.5,1767.2,1.127]
[1680486809432,3.2078,1767.5,1767.4,1.121]
[1680486810118,3.2078,1767.7,1767.4,1.121]
[1680486810328,3.2078,1767.7,1767.6,1.121]
[1680486811229,4.3388,1767.7,1767.0,3.2078]
[1680486811426,3.2078,1767.4,1767.0,3.2078]
[1680486811722,3.2078,1767.4,1767.2,1.127]
[1680486815026,3.2078,1767.4,1767.3,1.121]
[1680486815224,3.2078,1767.7,1767.3,1.121]
[1680486815523,3.2078,1767.7,1767.6,1.124]
[1680486815726,3.2078,1767.7,1767.6,2.255]
[1680486816030,3.2078,1767.9,1767.6,2.255]
[1680486816328,3.2078,1767.9,1767.8,1.121]
[1680486817325,3.2078,1768.1,1767.8,1.121]
[1680486817525,0.02975464,1768.2,1768.0,1.127]
[1680486817724,3.2078,1768.1,1768.0,1.127]
[1680486818026,0.02975464,1768.2,1768.1,0.0704369]
[1680486818227,0.02975464,1768.2,1768.1,1.2014369]
[1680486819030,0.02975464,1768.2,1768.1,2.2014369]
[1680486821337,0.02975464,1768.2,1768.1,3.3324369]
[1680486821529,0.00075464,1768.2,1768.1,8.9284369]
[1680486821733,0.00075464,1768.2,1768.1,13.9284369]
[1680486822431,0.00075464,1768.2,1768.1,8.3324369]
[1680486822836,0.00075464,1768.2,1768.1,8.52726123]
[1680486823138,0.00075464,1768.2,1768.1,6.39626123]
[1680486823839,3.2078,1768.7,1768.2,1.0]
[1680486824034,3.2078,1768.7,1768.6,1.121]
[1680486824241,3.2078,1768.9,1768.6,1.127]
[1680486824441,3.2078,1768.9,1768.7,1.121]
[1680486825136,0.57682827,1769.1,1768.7,1.121]
[1680486825335,3.78462827,1769.2,1768.9,1.121]
[1680486826142,3.2078,1769.2,1768.9,1.121]
[1680486826332,3.78462827,1769.2,1768.9,1.121]
[1680486828040,3.2078,1769.2,1768.9,0.96518734]
[1680486829046,3.2078,1769.0,1768.9,0.96518734]
[1680486829743,3.2078,1769.0,1768.4,1.0]
[1680486830048,3.2078,1768.8,1768.5,1.123]
[1680486830441,3.2078,1768.8,1768.6,1.131]
[1680486831741,1.131,1769.1,1768.6,1.131]
[1680486831947,3.2078,1769.1,1768.9,1.127]
[1680486832540,3.2078,1769.1,1769.0,1.123]
[1680486835146,3.2078,1769.1,1768.7,1.0]
[1680486835342,3.2078,1768.9,1768.5,0.55412144]
[1680486835545,3.2078,1769.1,1768.6,1.0]
[1680486835851,3.2078,1769.1,1768.8,1.127]
[1680486836035,3.2078,1769.1,1768.8,2.127]
[1680486836242,3.2078,1769.1,1769.0,1.131]
[1680486836745,3.2078,1769.3,1769.0,1.131]
[1680486837142,3.2078,1769.3,1768.9,2.26]
[1680486837443,3.2078,1769.3,1769.2,2.26]
[1680486837649,3.2078,1769.3,1769.2,2.66684316]
[1680486840547,3.2078,1769.3,1769.2,0.40684316]
[1680486840951,3.2078,1769.3,1769.0,2.26]
[1680486841244,3.2078,1769.1,1769.0,2.26]
[1680486841845,3.2078,1769.1,1768.7,43.052]
[1680486842056,3.2078,1768.9,1768.5,2.26]
[1680486842552,1.0,1768.8,1768.5,2.26]
[1680486842748,3.2078,1768.9,1768.5,2.26]
[1680486843355,3.2078,1768.9,1768.7,2.246]
[1680486844555,3.2078,1769.1,1768.8,2.26]
[1680486844855,3.2078,1769.1,1769.0,2.26]
[1680486846248,5.4548,1769.1,1767.6,4.09692975]
[1680486846449,2.248,1768.2,1767.6,5.1179]
[1680486846654,0.03810538,1768.1,1767.4,2.23972871]
[1680486846855,3.2078,1767.9,1767.3,8.1691]
[1680486847159,0.03810538,1768.1,1767.7,2.26]
[1680486847454,3.2078,1767.8,1767.4,2.26]
[1680486847655,2.26,1768.0,1767.4,2.26]
[1680486847656,3.2078,1767.6,1767.4,2.26]
[1680486848559,3.2078,1767.6,1767.3,2.26]
[1680486848761,3.2078,1767.4,1767.3,2.26]
[1680486849862,3.2078,1767.6,1767.3,2.26]
[1680486851364,2.253,1767.8,1767.3,2.26]
[1680486851365,3.2078,1767.4,1767.3,2.26]
[1680486852766,3.40681012,1767.4,1767.3,2.26]
[1680486857772,3.40681012,1767.4,1767.1,2.26]
[1680486860068,0.19901012,1767.4,1767.2,2.26]
[1680486860278,3.2078,1767.6,1767.2,2.26]
[1680486860572,3.2078,1767.6,1767.3,1.0]
[1680486860969,18.8,1767.5,1767.3,1.0]
[1680486862069,3.2078,1767.6,1767.3,1.0]
[1680486862070,3.2078,1767.6,1767.4,2.26]
[1680486862272,3.2078,1767.6,1767.5,3.26]
[1680486862768,3.33642625,1767.6,1767.5,2.26]
[1680486862974,3.33642625,1767.6,1767.3,1.0]
[1680486863162,3.33642625,1767.6,1767.4,2.26]
[1680486863367,0.12862625,1767.6,1767.4,2.26]
[1680486863564,3.2078,1767.9,1767.5,2.246]
[1680486863768,3.2078,1767.9,1767.6,3.26]
[1680486864167,3.2078,1767.9,1767.7,2.26]
[1680486864372,3.2078,1767.9,1767.3,1.0]
[1680486864373,3.2078,1767.9,1767.3,6.0]
[1680486864767,3.2078,1767.9,1767.5,2.252]
[1680486864974,3.2078,1767.9,1767.5,3.252]
[1680486865273,3.2078,1767.9,1767.5,2.252]
[1680486867574,3.2078,1767.7,1767.3,2.246]
[1680486867770,3.2078,1767.7,1767.0,6.17543988]
[1680486867771,2.26,1767.6,1767.1,2.26]
[1680486868077,3.2078,1767.5,1767.1,3.26]
[1680486868676,3.2078,1767.5,1767.1,2.26]
[1680486869473,2.26,1767.6,1767.2,3.2078]
[1680486869669,0.13402584,1767.8,1767.4,3.2078]
[1680486870075,5.4558,1767.9,1767.3,6.4678]
[1680486870275,5.4558,1767.9,1767.3,5.4678]
[1680486870971,3.2078,1767.7,1767.3,2.26]
[1680486871174,1.0,1767.6,1767.2,2.246]
[1680486871675,5.4608,1767.5,1767.0,0.57943988]
[1680486871883,5.4608,1767.5,1766.9,5.4678]
[1680486872074,2.247,1767.4,1766.9,5.4678]
[1680486872375,3.2078,1767.3,1766.9,5.4678]